bitfinex-derivatives/quotes_ETHF0:USTF0_20250926
["timestamp","ask_amount","ask_price","bid_price","bid_amount"]
[1758849993640,0.3161,3936.1,3935.8,0.3389]
[1758849993938,0.3161,3935.9,3935.8,0.3389]
[1758849994137,0.87396158,3935.9,3935.8,0.3389]
[1758849994640,0.3161,3935.8,3935.7,0.45703]
[1758849994836,0.3161,3935.8,3935.7,0.79593]
[1758849995536,0.45696,3936.4,3935.4,0.79596]
[1758849995537,0.3161,3936.4,3935.4,0.79596]
[1758849995742,0.77313,3935.8,3935.4,0.3389]
[1758849995937,0.77313,3935.8,3935.3,0.269]
[1758849995938,0.3161,3935.6,3935.3,0.269]
[1758849996145,0.77306,3936.4,3935.7,0.3389]
[1758849996340,1.01503324,3936.3,3935.7,0.3389]
[1758849996636,0.3161,3936.1,3935.8,0.3389]
[1758849996843,0.55806324,3936.0,3935.8,0.3389]
[1758849997041,0.3161,3935.9,3935.8,0.3389]
[1758849997238,0.3161,3935.9,3935.3,0.269]
[1758849997239,0.77313,3935.7,3935.3,0.269]
[1758849997434,0.1329,3935.5,3934.9,0.79602]
[1758849997637,0.87431052,3935.4,3934.9,0.79602]
[1758849997937,0.45703,3935.7,3934.9,0.79602]
[1758849997938,0.3161,3935.8,3935.3,0.45707]
[1758849998238,0.55820885,3935.7,3935.6,0.7829]
[1758849998434,1.30170885,3935.7,3935.6,0.7829]
[1758849998636,1.30170885,3935.7,3935.6,0.2306]
[1758849998840,1.30170885,3935.7,3935.3,0.3389]
[1758849998841,0.3161,3935.6,3935.3,0.3389]
[1758849999040,0.55820885,3935.7,3934.6,5.57413377]
[1758849999041,0.4571,3935.2,3934.6,0.3389]
[1758849999247,0.55820885,3935.1,3934.5,0.59587]
[1758849999437,0.55820885,3935.0,3934.6,0.3389]
[1758849999647,0.3161,3935.4,3934.6,0.3389]
[1758849999841,1.01547268,3935.3,3934.7,0.3389]
[1758850000038,0.45713,3934.9,3934.5,40.9387]
[1758850000347,0.3161,3934.7,3934.6,0.3389]
[1758850001742,0.45713,3934.9,3934.5,40.8]
[1758850001939,0.3161,3934.7,3934.6,0.3389]
[1758850002445,0.3161,3934.7,3933.6,40.77418]
[1758850002446,0.3161,3934.7,3934.1,0.3389]
[1758850002739,0.3161,3934.4,3933.7,1.06416]
[1758850002941,0.77329,3934.4,3933.8,0.79615]
[1758850003450,0.45719,3934.4,3933.8,0.45725]
[1758850003741,0.77323,3934.9,3933.8,0.3389]
[1758850003939,0.55810479,3934.8,3933.8,0.3389]
[1758850004142,0.55810479,3934.7,3934.4,0.3389]
[1758850004343,0.55810479,3934.6,3934.4,0.3389]
[1758850004539,0.3161,3934.8,3934.5,0.3389]
[1758850004839,0.1329,3935.0,3934.5,0.3389]
[1758850004840,0.3161,3934.6,3934.5,0.3389]
[1758850005034,0.45717,3934.5,3934.0,0.1334]
[1758850005242,0.45717,3934.5,3933.5,5.43953377]
[1758850005243,0.4572,3934.4,3933.6,0.45727]
[1758850005438,0.3161,3934.1,3933.9,0.3389]
[1758850005740,0.45716,3934.7,3934.1,0.3389]
[1758850006050,0.3161,3934.3,3934.1,0.3389]
[1758850006248,0.3161,3934.8,3934.1,0.79611]
[1758850006437,0.55774847,3934.7,3934.3,0.79609]
[1758850006640,0.3161,3934.5,3934.3,0.79609]
[1758850006942,2.48254865,3934.9,3934.3,0.79609]
[1758850007143,0.55726747,3934.8,3934.3,0.79609]
[1758850007335,0.55726747,3934.7,3934.3,0.79609]
[1758850007532,0.55726747,3934.6,3934.5,0.4723]
[1758850007740,0.4571,3935.2,3934.5,0.1334]
[1758850007943,0.87320552,3935.1,3934.5,0.4723]
[1758850008146,0.3161,3934.9,3934.6,0.3389]
[1758850008344,0.55710552,3934.8,3934.7,0.3389]
[1758850008543,2.32414821,3935.4,3934.3,0.3389]
[1758850008740,0.45712,3935.0,3934.3,0.3389]
[1758850008940,0.3161,3934.8,3934.3,0.3389]
[1758850009137,0.3161,3934.8,3934.2,0.4572]
[1758850009138,0.3161,3934.6,3934.2,0.45721]
[1758850009350,0.1329,3934.5,3934.0,0.79612]
[1758850009541,0.3161,3934.4,3934.2,0.4572]
[1758850009743,0.3161,3934.4,3934.3,0.3389]
[1758850010442,0.3161,3934.4,3934.3,0.7961]
[1758850010644,0.3161,3934.4,3934.1,0.45722]
[1758850010952,0.1329,3935.0,3934.4,0.45719]
[1758850011149,0.55681117,3934.9,3934.4,0.79609]
[1758850011444,0.3161,3934.7,3934.4,0.45719]
[1758850011647,0.87291117,3934.6,3934.5,0.3389]
[1758850011942,0.87291117,3934.6,3934.4,0.45719]
[1758850011943,0.3161,3934.9,3934.6,0.45716]
[1758850012148,0.87286502,3934.8,3934.7,0.3389]
[1758850012549,0.55676502,3934.8,3934.7,0.3389]
[1758850012846,0.55676502,3934.8,3934.6,0.45715]
[1758850013050,0.3161,3935.3,3934.7,0.3389]
[1758850013246,0.3161,3935.1,3934.7,0.45714]
[1758850013451,0.55680448,3935.0,3934.7,0.45714]
[1758850013652,0.87290448,3934.9,3934.8,0.3389]
[1758850014048,0.3161,3934.8,3934.5,0.79607]
[1758850014247,0.3161,3934.6,3934.5,0.3389]
[1758850014746,0.3161,3934.4,3934.2,0.7961]
[1758850014941,0.3161,3934.4,3934.0,0.45723]
[1758850015141,0.1329,3934.5,3934.2,0.45721]
[1758850015349,0.3161,3934.4,3934.3,0.3389]
[1758850016045,0.3161,3934.4,3933.9,0.3389]
[1758850016248,0.3161,3934.9,3934.3,0.45719]
[1758850016445,0.3161,3934.7,3934.0,0.4723]
[1758850016644,0.3161,3934.5,3934.0,0.4723]
[1758850016953,0.3161,3934.7,3934.0,0.4723]
[1758850017146,0.1329,3934.5,3934.0,0.79613]
[1758850017445,0.3161,3934.3,3933.6,0.3389]
[1758850017644,0.3161,3934.1,3933.7,0.45726]
[1758850017850,0.3161,3934.3,3933.8,0.45725]
[1758850018150,0.3161,3934.1,3933.8,0.79615]
[1758850018346,0.3161,3933.9,3933.5,0.3389]
[1758850018551,0.3161,3933.9,3933.0,0.1334]
[1758850018552,0.3161,3933.7,3933.3,0.3389]
[1758850018748,0.59014,3934.0,3933.3,0.3389]
[1758850018749,0.5576842,3933.6,3933.3,0.3389]
[1758850019049,0.8737842,3933.5,3933.4,0.3389]
[1758850019649,0.5576842,3933.5,3933.4,0.3389]
[1758850019846,0.5576842,3933.8,3933.4,0.3389]
[1758850020046,0.1329,3934.0,3933.6,0.3182]
[1758850020047,0.8854842,3933.7,3933.6,0.3182]
[1758850020751,0.5576842,3933.7,3933.6,0.7616]
[1758850021055,0.7711,3933.7,3933.3,0.45731]
[1758850021253,0.5577,3933.4,3933.3,0.53]
[1758850021554,0.3278,3933.3,3933.1,0.45733]
[1758850021757,0.1298,3933.5,3932.9,0.80097685]
[1758850021952,0.3278,3933.3,3933.0,0.77554]
[1758850022153,0.55825585,3933.4,3933.0,0.77554]
[1758850022154,0.3278,3933.4,3933.0,0.77554]
[1758850022355,0.1298,3933.5,3933.0,0.77554]
[1758850022547,0.3278,3933.3,3933.0,0.77554]
[1758850022750,0.3278,3933.4,3933.1,4.77295751]
[1758850023051,0.1298,3933.5,3933.1,4.77295751]
[1758850023353,0.55813789,3933.4,3933.1,4.77295751]
[1758850023552,0.3278,3933.2,3933.1,4.77295751]
[1758850023852,0.88593789,3933.2,3933.1,5.08865751]
[1758850025059,0.88593789,3933.2,3932.9,0.02542685]
[1758850025248,0.55813789,3933.1,3932.9,0.02542685]
[1758850025551,0.89563789,3933.0,3932.9,0.02542685]
[1758850025850,0.89563789,3933.0,3931.5,1.2772]
[1758850025851,1.46663789,3933.0,3931.9,0.3157]
[1758850026154,0.2092,3932.0,3931.9,0.7513]
[1758850026347,2.59647946,3932.6,3931.9,0.4356]
[1758850026547,0.55813789,3932.5,3931.9,0.4356]
[1758850026854,0.2092,3932.1,3932.0,0.4356]
[1758850027170,0.76733789,3932.1,3932.0,0.4356]
[1758850027553,0.76733789,3932.1,3932.0,0.7513]
[1758850027554,1.33663789,3932.1,3932.0,0.7513]
[1758850029260,0.99913789,3932.1,3932.0,0.7513]
[1758850030452,0.7785,3931.8,3931.7,0.531]
[1758850032056,0.7785,3931.8,3931.5,0.4014]
[1758850032057,1.34948129,3931.8,3931.5,0.268]
[1758850032355,1.01198129,3931.7,3931.6,0.2153]
[1758850032856,1.34948129,3931.7,3931.6,0.2153]
[1758850033155,1.34948129,3931.7,3931.6,0.531]
[1758850033756,1.34948129,3931.7,3931.6,0.7513]
[1758850033959,0.78018129,3931.7,3931.6,0.7513]
[1758850034358,1.11768129,3931.7,3931.6,0.7513]
[1758850035458,0.78018129,3931.7,3931.6,0.7513]
[1758850036158,1.34948129,3931.7,3931.6,0.7513]
[1758850037156,0.3375,3932.1,3932.0,0.2153]
[1758850037352,0.7785,3932.1,3932.0,0.7513]
[1758850037553,0.5467,3931.7,3931.6,0.7513]
[1758850037753,0.56991038,3931.9,3931.7,0.4575]
[1758850037954,0.79492,3932.4,3931.9,0.3157]
[1758850038151,0.2092,3932.0,3931.9,0.7513]
[1758850038664,0.5467,3932.0,3931.9,0.7513]
[1758850038856,1.11662251,3932.0,3931.9,0.7513]
[1758850039068,1.34842251,3932.0,3931.9,0.7513]
[1758850039263,1.80588251,3932.0,3931.9,0.7513]
[1758850039567,1.34842251,3932.0,3931.9,0.7513]
[1758850040066,0.77912251,3932.0,3931.9,0.7513]
[1758850040263,1.11662251,3932.0,3931.9,0.7513]
[1758850040665,0.56992251,3932.0,3931.9,0.7513]
[1758850040864,0.3375,3932.7,3932.3,0.3157]
[1758850041062,0.3375,3932.7,3932.6,0.7513]
[1758850041063,0.7785,3932.7,3932.6,0.7513]
[1758850041263,1.34855472,3932.7,3932.6,0.7513]
[1758850041666,1.34855472,3932.7,3932.6,0.4356]
[1758850042166,0.57005472,3932.7,3932.6,0.7513]
[1758850043959,0.54462787,3932.7,3932.6,5.7513]
[1758850044276,0.8039,3933.6,3933.5,0.7513]
[1758850044572,0.4664,3933.6,3933.2,0.45732]
[1758850044765,0.4664,3933.6,3933.3,0.531]
[1758850044766,0.7785,3933.4,3933.3,0.531]
[1758850045759,0.7785,3933.4,3933.3,0.2153]
[1758850046062,0.7785,3933.0,3932.9,41.1157]
[1758850046457,0.7785,3933.0,3932.9,40.8]
[1758850046654,0.9085,3933.0,3932.9,40.8]
[1758850047064,0.9085,3933.0,3932.6,0.5837]
[1758850047259,0.7785,3932.7,3932.6,0.799]
[1758850047461,0.7785,3932.7,3932.4,0.268]
[1758850047462,0.3375,3932.6,3932.4,0.268]
[1758850047666,0.441,3932.6,3932.5,0.2153]
[1758850047863,0.7785,3932.6,3932.5,0.2153]
[1758850048471,0.7785,3932.6,3932.5,0.7513]
[1758850052167,0.0254,3932.9,3932.5,0.5717]
[1758850052360,0.8209,3932.9,3932.5,0.1361]
[1758850052565,0.8209,3932.9,3932.5,0.3229]
[1758850052765,0.4544,3932.6,3932.5,0.5517]
[1758850052968,0.7955,3932.6,3932.5,0.2288]
[1758850053271,0.7955,3932.3,3932.2,0.8197]
[1758850053462,0.3411,3932.8,3932.5,0.4574]
[1758850053668,0.2278,3932.8,3932.7,0.4447]
[1758850053856,0.2278,3932.8,3932.7,0.7676]
[1758850054366,0.5689,3932.8,3932.7,0.7676]
[1758850055068,0.2278,3932.8,3932.7,0.7676]
[1758850056069,0.80046667,3932.8,3932.7,0.7676]
[1758850056270,1.14156667,3932.8,3932.7,0.7676]
[1758850056567,0.80046667,3932.8,3932.7,0.7676]
[1758850057181,1.36816667,3932.8,3932.7,0.7676]
[1758850057470,1.02706667,3932.8,3932.7,0.7676]
[1758850058164,0.80046667,3932.8,3932.7,0.7676]
[1758850060279,1.36816667,3932.8,3932.7,0.7676]
[1758850060971,1.36816667,3932.8,3932.7,2.1121679]
[1758850062175,1.36816667,3932.8,3932.7,0.7676]
[1758850062386,1.36816667,3932.8,3932.7,0.2288]
[1758850062581,0.4544,3932.2,3932.1,1.00915]
[1758850062780,0.7955,3932.2,3932.1,1.27715]
[1758850063075,1.36816667,3932.2,3932.1,1.0356]
[1758850063272,1.36816667,3932.2,3932.1,0.7676]
[1758850063481,1.36816667,3932.2,3932.1,0.4968]
[1758850063674,0.2278,3931.8,3931.7,1.8962679]
[1758850063876,1.36816667,3931.8,3931.7,1.8962679]
[1758850064076,1.36816667,3931.8,3931.7,1.0356]
[1758850064077,0.80046667,3931.8,3931.7,1.0356]
[1758850064281,0.80046667,3931.8,3931.7,2.3801679]
[1758850064466,0.57266667,3931.8,3931.7,7.3801679]
[1758850064778,0.2278,3932.3,3932.2,0.7676]
[1758850064976,1.14182081,3932.3,3932.2,2.1121679]
[1758850065979,1.36842081,3932.3,3932.2,2.1121679]
[1758850066173,1.36842081,3932.3,3932.0,0.268]
[1758850066370,0.1267,3932.5,3932.0,2.1121679]
[1758850066371,0.7955,3932.1,3932.0,2.1121679]
[1758850066674,0.7955,3931.8,3931.7,2.1121679]
[1758850066880,1.36842081,3931.8,3931.7,2.3801679]
[1758850071782,1.36842081,3931.8,3931.7,2.1121679]
[1758850072075,1.36842081,3931.8,3931.5,0.1324]
[1758850072076,0.4544,3931.6,3931.5,1.6125679]
[1758850072279,0.7955,3931.6,3931.5,1.6125679]
[1758850072477,1.36842081,3931.6,3931.5,1.8413679]
[1758850072672,1.36842081,3931.6,3931.5,2.1642679]
[1758850074080,1.36842081,3931.6,3931.5,1.5733679]
[1758850074275,1.36842081,3931.6,3931.5,1.8413679]
[1758850074473,1.36842081,3931.6,3931.5,2.1121679]
[1758850074682,1.36842081,3931.6,3931.5,1.0356]
[1758850075589,1.36842081,3931.6,3931.5,0.7676]
[1758850075786,1.36842081,3931.6,3931.5,1.0356]
[1758850077482,0.57292081,3931.6,3931.5,1.62922]
[1758850077986,0.0254,3931.7,3931.5,6.62922]
[1758850078289,0.0254,3931.7,3931.6,2.35087858]
[1758850078993,0.59806136,3931.7,3931.6,2.35087858]
[1758850079171,0.59806136,3931.7,3931.6,7.35087858]
[1758850080983,0.59806136,3931.7,3931.6,7.61787858]
[1758850082081,1.94242199,3933.0,3932.7,0.4217]
[1758850082082,0.67908,3932.8,3932.7,0.4217]
[1758850082287,1.59994733,3932.8,3932.7,0.7521]
[1758850082485,1.82624733,3932.8,3932.7,0.7521]
[1758850082887,1.82624733,3932.8,3932.7,0.4217]
[1758850083084,1.36886733,3932.8,3932.7,0.7521]
[1758850084786,1.36886733,3932.8,3932.7,0.2106]
[1758850084976,0.7646,3932.1,3932.0,0.2179]
[1758850085197,1.33716733,3932.1,3932.0,0.564]
[1758850085393,1.33716733,3932.1,3932.0,0.7884]
[1758850085695,1.33716733,3932.1,3932.0,2.37167858]
[1758850085889,0.57256733,3932.1,3932.0,2.50707858]
[1758850086288,0.7646,3933.0,3932.9,0.4423]
[1758850086482,1.46213431,3933.0,3932.9,0.4423]
[1758850086682,1.46213431,3933.0,3932.9,0.2179]
[1758850087088,1.46213431,3933.0,3932.0,0.1354]
[1758850087089,0.3174,3932.2,3931.8,0.3461]
[1758850087391,0.7646,3931.9,3931.8,1.0554]
[1758850087580,1.33603431,3931.9,3931.8,2.63867858]
[1758850087779,0.57143431,3931.9,3931.8,2.63867858]
[1758850087977,0.3174,3932.9,3932.1,0.4423]
[1758850088291,1.33612845,3932.8,3932.7,0.7884]
[1758850088592,0.57152845,3932.8,3932.7,0.7884]
[1758850088793,0.79282845,3932.8,3932.7,0.7884]
[1758850089390,1.33612845,3932.8,3932.7,0.7884]
[1758850090485,1.01872845,3932.8,3932.7,1.0554]
[1758850090688,1.79349845,3932.8,3932.7,1.0554]
[1758850090887,1.33612845,3932.8,3932.7,1.0554]
[1758850093894,0.7646,3932.4,3932.3,40.8]
[1758850094193,1.33612845,3932.4,3932.3,41.4131]
[1758850094487,1.33612845,3932.4,3932.3,41.1461]
[1758850094684,1.33612845,3932.4,3932.3,41.067]
[1758850094885,1.33612845,3932.4,3932.3,0.267]
[1758850095088,1.33612845,3932.4,3932.0,0.3461]
[1758850095295,0.7646,3932.1,3932.0,0.564]
[1758850095486,1.33612845,3932.1,3932.0,1.0554]
[1758850095796,0.79282845,3932.1,3932.0,2.77407858]
[1758850095994,0.57152845,3932.1,3932.0,2.77407858]
[1758850096185,0.57152845,3932.1,3932.0,1.1908]
[1758850096393,1.11022845,3932.1,3932.0,2.77407858]
[1758850096593,1.33612845,3932.1,3932.0,2.77407858]
[1758850097288,1.33612845,3932.1,3932.0,0.7093]
[1758850097787,1.33612845,3932.1,3932.0,0.4423]
[1758850097988,1.33612845,3932.1,3932.0,0.7884]
[1758850098794,0.57152845,3932.1,3932.0,2.50707858]
[1758850099485,0.77479,3932.7,3932.0,2.50707858]
[1758850099486,1.22199,3932.7,3932.6,0.2179]
[1758850099682,0.57144959,3932.7,3932.6,2.37167858]
[1758850099891,0.57144959,3932.7,3932.6,2.63867858]
[1758850100295,0.1554,3933.5,3932.6,7.63867858]
[1758850100296,0.0254,3933.5,3932.6,7.63867858]
[1758850100487,0.9161,3933.5,3933.4,0.2179]
[1758850100687,0.9161,3933.5,3933.4,0.267]
[1758850100889,0.8907,3933.5,3933.4,0.267]
[1758850101195,0.8907,3933.5,3933.4,0.4849]
[1758850101392,0.6648,3933.0,3932.9,2.02557858]
[1758850101693,0.6648,3933.0,3932.9,2.29257858]
[1758850101904,0.6648,3933.0,3932.9,43.09257858]
[1758850102198,0.6648,3933.0,3932.9,43.54993858]
[1758850102597,0.58339,3933.5,3932.9,43.54993858]
[1758850102598,0.2213,3933.3,3933.2,0.45732]
[1758850102904,0.7646,3933.3,3933.2,2.29257858]
[1758850103593,0.7646,3933.3,3932.9,40.8]
[1758850103594,0.45735,3933.0,3932.9,40.8]
[1758850103798,0.45735,3933.0,3931.0,0.1324]
[1758850103799,0.3174,3932.9,3932.7,0.267]
[1758850104000,0.4435,3933.0,3932.8,0.2002]
[1758850104202,0.3474,3933.5,3933.4,0.4423]
[1758850104394,0.6648,3933.5,3933.4,0.4423]
[1758850104697,0.8907,3933.5,3933.4,0.4423]
[1758850107198,0.8907,3933.5,3933.4,0.2179]
[1758850108606,0.8907,3933.5,3933.2,0.267]
[1758850108801,0.8907,3933.5,3932.5,1.58327858]
[1758850108802,0.1261,3933.0,3932.5,1.58327858]
[1758850109104,0.1261,3933.0,3931.5,0.1361]
[1758850109105,0.7646,3932.3,3932.2,0.2179]
[1758850109306,0.7646,3932.3,3932.2,0.4849]
[1758850110398,0.7646,3932.3,3932.0,0.45745]
[1758850110602,1.22204,3932.3,3932.1,0.267]
[1758850110994,0.1271,3932.0,3931.7,0.45749]
[1758850111198,0.7484,3931.8,3931.7,0.68469]
[1758850111399,0.7484,3931.8,3931.7,0.95169]
[1758850111598,0.5337,3931.8,3931.7,2.75736858]
[1758850111809,0.6608,3932.0,3931.9,0.90708]
[1758850112309,1.22951519,3932.0,3931.9,0.90708]
[1758850113507,1.01701519,3932.0,3931.9,1.17408]
[1758850115205,1.22951519,3932.0,3931.9,1.17408]
[1758850116209,0.56871519,3932.0,3931.9,1.37578]
[1758850116403,0.88991519,3932.0,3931.9,1.37578]
[1758850116609,0.56871519,3932.0,3931.9,1.37578]
[1758850116906,0.5337,3932.4,3932.3,0.90703]
[1758850117207,0.88975529,3932.4,3932.3,2.95900858]
[1758850117711,0.5337,3932.8,3932.7,0.90698]
[1758850117906,1.10218838,3932.8,3932.7,1.37568]
[1758850118108,1.10218838,3932.8,3932.7,2.95895858]
[1758850118811,0.88968838,3932.8,3932.7,2.95895858]
[1758850119212,1.10217871,3932.8,3932.7,2.95895858]
[1758850119414,1.10217871,3932.8,3932.7,2.75725858]
[1758850121609,0.56847871,3932.8,3932.7,2.95895858]
[1758850121809,0.3212,3933.2,3933.1,0.90694]
[1758850122014,1.10211173,3933.2,3933.1,2.75721858]
[1758850122217,1.31681173,3933.2,3933.1,2.75721858]
[1758850122514,1.31681173,3933.2,3932.9,0.2017]
[1758850122515,1.31681173,3933.2,3931.7,1.14373]
[1758850122714,0.4272,3932.7,3932.5,1.58327858]
[1758850123015,0.7484,3932.3,3932.2,2.26791858]
[1758850123214,0.7484,3932.3,3932.2,2.53491858]
[1758850123416,1.31690683,3932.3,3932.2,2.53491858]
[1758850123611,1.10220683,3932.3,3932.2,2.75731858]
[1758850123819,0.1271,3932.5,3932.4,1.10872]
[1758850123820,0.4483,3932.5,3932.4,1.10872]
[1758850124017,0.6608,3932.5,3932.4,2.49029858]
[1758850124317,1.22926088,3932.5,3932.4,2.49029858]
[1758850124613,0.69556088,3932.5,3932.4,2.69199858]
[1758850124817,0.3212,3932.9,3932.8,0.90697]
[1758850125005,0.5337,3932.9,3932.8,2.75724858]
[1758850125211,1.3168582,3932.9,3932.8,2.75724858]
[1758850125511,1.1021582,3932.9,3932.8,2.75724858]
[1758850126113,0.88962515,3932.9,3932.8,2.95894858]
[1758850126414,0.4483,3933.0,3932.9,0.6513]
[1758850126921,0.1261,3933.5,3932.9,0.6513]
[1758850127117,0.1271,3934.0,3933.9,0.90684]
[1758850127118,0.4483,3934.0,3933.9,0.90684]
[1758850127322,0.6608,3934.0,3933.9,2.75711858]
[1758850127615,0.4483,3934.0,3933.9,2.95881858]
[1758850127823,0.0254,3934.1,3934.0,0.6513]
[1758850128121,0.0254,3934.1,3934.0,0.7182]
[1758850128510,0.0254,3934.1,3934.0,6.03100396]
[1758850129216,0.0254,3934.1,3934.0,6.29800396]
[1758850129415,0.0254,3934.1,3933.9,0.45724]
[1758850129416,0.6608,3934.0,3933.9,0.45724]
[1758850129718,0.8755,3934.0,3933.9,0.95144]
[1758850130116,0.8755,3934.0,3933.9,0.68444]
[1758850130419,0.6608,3934.0,3933.9,1.17384]
[1758850130607,0.6608,3934.0,3933.9,0.90684]
[1758850130815,0.6608,3934.0,3933.9,1.17384]
[1758850131212,0.8755,3934.0,3933.9,1.17384]
[1758850133125,0.6608,3934.0,3933.9,1.17384]
[1758850133616,0.8755,3934.0,3933.9,1.17384]
[1758850134723,0.8755,3934.0,3933.9,5.94753833]
[1758850134919,0.1271,3934.5,3933.9,5.03969833]
[1758850135119,0.5337,3934.2,3934.1,0.2272]
[1758850135319,0.7484,3934.2,3934.1,0.2272]
[1758850135719,0.7484,3934.2,3934.0,0.45723]
[1758850135920,0.4272,3934.2,3934.0,0.45723]
[1758850136125,0.7484,3934.1,3934.0,0.45723]
[1758850136429,0.7484,3934.1,3934.0,0.68443]
[1758850137222,0.58428,3934.5,3933.4,41.0017]
[1758850137223,0.4272,3933.5,3933.4,40.8]
[1758850137526,0.7484,3933.4,3933.3,0.6845]
[1758850137721,0.7484,3933.4,3933.0,4.77369833]
[1758850137722,0.3212,3933.3,3933.0,4.77369833]
[1758850138024,0.3212,3933.2,3933.1,41.066]
[1758850138226,0.3212,3933.2,3933.1,41.2677]
[1758850138430,0.3212,3933.2,3933.1,41.066]
[1758850139015,0.3212,3933.2,3933.1,41.2677]
[1758850139229,0.4483,3933.5,3933.4,0.4496]
[1758850139431,0.6608,3933.5,3933.4,0.7156]
[1758850139729,0.6608,3933.5,3933.4,1.1729]
[1758850140425,0.8755,3933.5,3933.4,0.266]
[1758850140632,0.7658,3933.2,3933.1,40.8]
[1758850140930,0.7658,3933.2,3933.1,41.066]
[1758850141326,0.3187,3933.2,3933.1,41.066]
[1758850141523,0.1271,3933.5,3933.1,41.2673]
[1758850141730,0.348,3933.5,3933.4,0.4458]
[1758850141922,0.5742,3933.5,3933.4,0.9031]
[1758850142128,0.8929,3933.5,3933.4,0.7233]
[1758850142829,0.8929,3933.5,3933.4,0.266]
[1758850143022,0.7658,3933.3,3933.2,0.45732]
[1758850143223,0.7658,3933.3,3933.2,0.72332]
[1758850143422,0.5396,3933.3,3933.2,1.16912]
[1758850143720,0.3325,3933.8,3933.7,0.45727]
[1758850143923,1.11734972,3933.8,3933.7,1.17417]
[1758850144331,1.33384972,3933.8,3933.7,1.17417]
[1758850144735,1.33384972,3933.8,3933.7,0.266]
[1758850145036,1.33384972,3933.8,3933.1,40.8]
[1758850145037,0.77,3933.3,3933.2,5.23101833]
[1758850145233,0.77,3933.3,3933.2,5.49701833]
[1758850145536,0.77,3933.3,3933.2,5.72491833]
[1758850146034,0.3325,3933.3,3933.2,6.14921833]
[1758850146238,0.3325,3933.3,3933.2,5.94791833]
[1758850146429,0.5535,3933.3,3933.2,5.94791833]
[1758850146624,0.1301,3933.5,3933.4,0.6852]
[1758850146932,0.5535,3933.9,3933.8,0.4509]
[1758850147124,1.33441183,3933.9,3933.8,0.7169]
[1758850148026,1.33441183,3933.9,3933.8,0.4939]
[1758850148224,1.33441183,3933.9,3933.2,4.77369833]
[1758850148443,0.77,3933.3,3933.2,4.77369833]
[1758850148730,0.77,3933.3,3932.3,40.79558]
[1758850148731,0.77,3932.9,3932.4,4.77369833]
[1758850148932,0.5535,3932.8,3932.7,0.2279]
[1758850149341,0.5535,3932.8,3932.7,1.17427]
[1758850149530,0.5535,3932.8,3932.7,0.90827]
[1758850149733,0.3325,3932.8,3932.7,1.37557]
[1758850149931,0.5535,3932.8,3932.7,1.17427]
[1758850151132,0.77,3932.8,3932.7,0.45737]
[1758850151328,0.4375,3932.6,3932.5,0.4574]
[1758850151528,0.77,3932.6,3932.5,0.7234]
[1758850152233,0.77,3932.6,3931.4,39.653]
[1758850152234,0.5535,3932.1,3932.0,0.90836]
[1758850152430,0.5535,3932.1,3932.0,1.17436]
[1758850153338,0.3325,3932.1,3932.0,1.17436]
[1758850154227,0.5535,3932.1,3932.0,1.17436]
[1758850155440,0.33677467,3933.0,3932.0,1.17436]
[1758850155441,0.3511,3933.0,3932.8,0.223]
[1758850155647,0.6836,3933.0,3932.9,0.4939]
[1758850155828,1.24828417,3933.0,3932.9,0.4939]
[1758850156034,1.46478417,3933.0,3932.9,0.4939]
[1758850156230,1.46478417,3933.0,3932.9,0.266]
[1758850157042,0.2165,3932.3,3932.2,0.45743]
[1758850157335,0.3511,3932.5,3932.4,0.90832]
[1758850157539,0.3511,3932.5,3932.4,1.17432]
[1758850157766,0.6836,3932.5,3932.4,1.17432]
[1758850158441,0.6836,3932.5,3931.4,0.266]
[1758850158442,0.5676,3931.5,3931.4,0.266]
[1758850158644,0.9001,3931.5,3931.4,0.266]
[1758850158836,0.9001,3932.0,3931.9,0.2279]
[1758850159146,1.46399765,3932.0,3931.9,0.2279]
[1758850159346,0.3325,3931.7,3931.0,4.77369833]
[1758850159540,0.5535,3931.2,3931.1,0.2279]
[1758850159742,0.5535,3931.2,3931.1,41.2939]
[1758850160644,0.5535,3931.2,3931.1,41.0279]
[1758850160843,0.5535,3931.2,3931.1,41.2939]
[1758850161347,0.5535,3931.2,3930.1,39.661]
[1758850161348,0.5535,3930.4,3930.3,0.68555]
[1758850161643,0.5535,3930.9,3930.8,0.4509]
[1758850161840,0.5535,3930.9,3930.8,5.49059833]
[1758850162641,0.45751,3931.6,3930.9,0.2013]
[1758850162838,0.5535,3931.3,3931.2,0.2279]
[1758850163043,0.5535,3931.3,3931.2,0.4939]
[1758850163546,0.6836,3931.0,3930.9,0.45758]
[1758850163744,0.9001,3931.0,3930.9,0.266]
[1758850164043,0.9001,3931.0,3930.9,0.7169]
[1758850164356,0.6836,3931.0,3930.9,0.7169]
[1758850164549,0.9001,3931.0,3930.9,0.4939]
[1758850164844,0.3325,3930.9,3930.7,4.77369833]
[1758850165040,0.77,3930.9,3930.8,0.266]
[1758850165241,0.3325,3930.9,3930.8,0.7169]
[1758850165746,0.5535,3930.9,3930.8,0.7169]
[1758850168542,0.45755,3931.3,3931.2,0.223]
[1758850168543,0.5535,3931.3,3931.2,0.223]
[1758850168741,0.3325,3931.3,3931.2,5.69189833]
[1758850169547,0.4626,3931.5,3931.4,0.6522]
[1758850169744,0.4626,3931.5,3931.4,0.7169]
[1758850169942,0.4626,3931.5,3931.4,0.9174]
[1758850170145,0.3476,3931.9,3931.4,0.9174]
[1758850170346,0.9305,3931.5,3931.4,0.266]
[1758850170547,0.9305,3931.5,3931.4,0.4803]
[1758850172247,0.9305,3931.5,3931.4,0.266]
[1758850173355,0.9305,3931.5,3931.4,0.4803]
[1758850173558,0.9305,3931.5,3931.4,0.6967]
[1758850175257,0.9305,3931.5,3931.4,0.8972]
[1758850175258,0.3476,3931.5,3931.4,0.8972]